Cogmind - Beta 14 @@@ ROGUE MODE // 2024.10.20 @ 18:13:31 Player: SpaceWalrus Result: Destroyed by D-53 Grenadier with Mini Grenade Launcher Performance ------------- Evolutions (0) 0 Regions Visited (2) 400 Robots Destroyed (15) 75 Value Destroyed (283) 283 Prototype IDs (0) 0 Alien Tech Used (0) 0 Bonus (0) 0 TOTAL SCORE: 758 Bonus ------- None Cogmind --------- Core Integrity 0/250 Matter 295/300 Energy 80/100 System Corruption 0% Temperature Cool (3) Movement Walking (125) Location -10/Mines Parts ------- > --- POWER (1) -------- (None) > --- PROPULSION (2) --- Aluminum Leg Titanium Leg > --- UTILITY (2) ------ Medium Storage Unit Structural Scanner > --- WEAPON (2) ------- (None) > --- INVENTORY (10) --- Aluminum Leg Improved Heat Sink Improved Terrain Scanner Targeting Computer Hardlight Generator Hacking Suite System Shield Beam Cannon Beam Cannon Missile Launcher Peak State ------------ > --- POWER ------------ Nuclear Core > --- PROPULSION ------- Aluminum Leg Titanium Leg > --- UTILITY ---------- Medium Storage Unit Hardlight Generator > --- WEAPON ----------- Beam Cannon Grenade Launcher > --- INVENTORY -------- Aluminum Leg Improved Heat Sink Small Storage Unit Improved Terrain Scanner Targeting Computer Hacking Suite System Shield Beam Cannon Beam Cannon Missile Launcher [Rating: 15] Favorites ----------- Power Nuclear Core Engine Ion Engine Power Core Nuclear Core Propulsion Aluminum Leg Leg Aluminum Leg Utility Medium Storage Unit Device Hardlight Generator Storage Medium Storage Unit Weapon Grenade Launcher Energy Gun Medium Laser Energy Cannon Beam Cannon Ballistic Gun Light Assault Rifle Launcher Grenade Launcher Build | -11 -10 -10 ------- Run | Yrd Mat Min Slots Evolved . | . . . Power . | . . . Propulsion . | . . . Utility . | . . . Weapon . | . . . Parts Attached 18 | 7 5 6 Power 3 | 1 1 1 Engine 2 | 1 1 . Core 1 | . . 1 Reactor . | . . . Propulsion 5 | 2 2 1 Treads . | . . . Leg 5 | 2 2 1 Wheel . | . . . Hover . | . . . Flight . | . . . Utility 6 | 2 1 3 Device 4 | 1 1 2 Storage 2 | 1 . 1 Processor . | . . . Hackware . | . . . Protection . | . . . Artifact . | . . . Weapon 4 | 2 1 1 Energy Gun 1 | 1 . . Energy Cannon 1 | . . 1 Ballistic Gun 1 | 1 . . Ballistic Cannon . | . . . Launcher 1 | . 1 . Special Weapon . | . . . Impact Weapon . | . . . Slashing Weapon . | . . . Piercing Weapon . | . . . Special Melee Weapon . | . . . Unidentified Prototypes . | . . . Parts Lost 5 | . 2 3 Power 2 | . 1 1 Propulsion . | . . . Utility 1 | . 1 . Weapon 2 | . . 2 Highest Loss Streak 3 | . 1 3 To Critical Strikes . | . . . Average Slot Usage (%) 97 | . 94 99 Engine 4 | . 10 . Core 7 | . . 13 Leg 28 | . 28 28 Device 13 | . 12 13 Storage 14 | . 14 14 Energy Gun 6 | . 14 . Energy Cannon 7 | . . 13 Ballistic Gun 2 | . 6 . Launcher 11 | . 7 14 Peak Build Rating 15 | 7 10 15 Average Rating 10 | 4 7 13 On Entrance 5 | . 7 10 Naked Turns . | . . . Heaviest Build 28 | 14 14 28 Greatest Support 27 | 20 20 27 Greatest Overweight (x) 1 | 1 . 1 Average Overweight (x) . | . . . Largest Inventory Capacity 10 | 8 8 10 Average Capacity 9 | 7 8 9 Most Carried 10 | 6 8 10 Average Carried 7 | 2 4 9 Final Capacity 10 | 8 8 10 Final Carried 10 | 3 8 10 Class Distribution -------------------- 100% | Mutant Dominant Class ---------------- Mutant | -10/Materials Mutant | -10/Mines Resources | -11 -10 -10 ----------- Run | Yrd Mat Min Matter Collected 450 | 245 135 70 Remotely . | . . . Salvage Created 400 | 49 278 73 Parts 20 | 8 10 2 Haulers Intercepted 1 | . 1 . Recyclers Shooed 1 | . 1 . Parts Field Recycled . | . . . Retrieved Matter . | . . . Parts Self-Destructed . | . . . Prevented . | . . . Kills | -11 -10 -10 ------- Run | Yrd Mat Min Combat Hostiles Destroyed 13 | . 8 5 Guns 8 | . 8 . Cannons 3 | . . 3 AOE 2 | . . 2 Classes Destroyed 7 | 1 4 2 Builder 1 | . . 1 Tunneler 3 | 3 . . Hauler 1 | . 1 . Operator 2 | . 2 . Swarmer 3 | . 3 . Grunt 5 | . 5 . Assembled 5 | . . 5 Best Kill Streak 4 | 3 4 4 Combat Bots Only 4 | . 4 4 Max Kills in Single Turn 2 | 1 1 2 Gunslinging . | . . . Exploded 2 | . . 2 Melee . | . . . Uniques/NPCs Destroyed . | . . . Combat | -11 -10 -10 -------- Run | Yrd Mat Min Hostile Shots Fired 86 | . 64 22 Missed 27 | . 21 6 Damage Taken 991 | . 463 528 Core 253 | . 119 134 Absorbed by Shields . | . . . Core Remaining (%) 100 | 100 . . Volleys Fired 79 | 6 57 16 Largest 2 | 2 2 2 Hottest 90 | 70 80 90 Shots Fired 113 | 12 82 19 Gun 90 | 12 78 . Cannon 16 | . . 16 Launcher 7 | . 4 3 Special . | . . . Kinetic 27 | 6 21 . Thermal 79 | 6 57 16 Explosive 7 | . 4 3 Electromagnetic . | . . . Robot Hit Streak 10 | 2 10 3 Robot Miss Streak 4 | 3 4 2 Penetration Max . | . . . Secondary Targets 2 | . 2 . Max Gunslinging Chain 1 | . 1 . Shots Hit Robots 68 | 5 51 12 Core Hits 36 | 3 23 10 Critical Kills . | . . . Critical Parts Destroyed . | . . . Critical Strikes 2 | . 2 . Burn 2 | . 2 . Melee Attacks . | . . . Impact . | . . . Slashing . | . . . Piercing . | . . . Sneak Attacks . | . . . Combat Hostiles . | . . . Follow-up Attacks . | . . . Damage Inflicted 1081 | 49 787 245 Guns 624 | 49 575 . Cannons 176 | . . 176 Explosions 279 | . 210 69 Melee . | . . . Ramming 2 | . 2 . Kinetic 125 | 23 102 . Thermal 675 | 26 473 176 Explosive 279 | . 210 69 Electromagnetic . | . . . Impact . | . . . Slashing . | . . . Piercing . | . . . Highest Corruption . | . . . Average Corruption . | . . . Corruption Purged . | . . . Corruption Blocked . | . . . Overload Shots . | . . . Overflow Damage 13 | . 13 . Projectiles . | . . . Explosions 13 | . 13 . Melee . | . . . Knockbacks . | . . . Impact . | . . . Kinetic . | . . . Secondary . | . . . Self-Inflicted Damage 24 | . 24 . Shots 1 | . 1 . Rammed . | . . . Targets Rammed 1 | . 1 . Kicked 1 | . 1 . Crushed . | . . . Highest Temperature 259 | 80 259 144 Average Temperature 58 | 40 67 46 Received Heat Transfer 192 | . 192 . Siege Activations . | . . . Robots Corrupted . | . . . Combat Hostiles . | . . . Parts Fried . | . . . Impact Corruptions . | . . . Robots Melted . | . . . Combat Hostiles . | . . . Parts Melted 4 | . 4 . Heat Transferred 1998 | 74 1554 370 Parts Sabotaged . | . . . Parts Stolen . | . . . Parts Stripped . | . . . Power Chain Reactions . | . . . Alert | -11 -10 -10 ------- Run | Yrd Mat Min Peak Influence 281 | 15 281 56 Initial 37 | . 9 37 Average 72 | 5 146 30 Maximum Alert Level 1 | . 1 . Low Security (%) 85 | 100 61 100 Level 1 14 | . 38 . Level 2 . | . . . Level 3 . | . . . Level 4 . | . . . Level 5 . | . . . High Security . | . . . Max Security . | . . . Squads Dispatched 4 | . 3 1 Investigation 2 | . 1 1 Extermination . | . . . Reinforcement 2 | . 2 . Assault . | . . . Garrison . | . . . Intercept . | . . . Searches Triggered . | . . . Construction Impeded . | . . . Haulers Reinforced . | . . . Active Scanning Responses . | . . . Cargo Convoy Interrupts . | . . . Stealth | -11 -10 -10 --------- Run | Yrd Mat Min Distress Signals 1 | . 1 . Communications Jammed . | . . . Distress Signals . | . . . Times Spotted 31 | . 21 10 Peak Tracking Total 4 | . 4 3 Tactical Retreats 1 | . . 1 Traps | -11 -10 -10 ------- Run | Yrd Mat Min Traps Triggered . | . . . Indirectly . | . . . Trap Hack Attempts . | . . . Triggered . | . . . Disarmed . | . . . Reprogrammed . | . . . Reused . | . . . Traps Extracted . | . . . Installed . | . . . Triggered . | . . . Machines | -11 -10 -10 ---------- Run | Yrd Mat Min Machines Disabled 1 | . 1 . Max in Single Turn 1 | . 1 . Machines Repaired . | . . . Machines Dismantled . | . . . Machines Sabotaged . | . . . Overloaded Fab Kills . | . . . Hacking | -11 -10 -10 --------- Run | Yrd Mat Min Machines Accessed 4 | . 3 1 Terminals 3 | . 3 . Fabricators . | . . . Repair Stations . | . . . Recycling Units . | . . . Scanalyzers . | . . . Garrison Access . | . . . Total Hacks 10 | . 9 1 Successful 4 | . 3 1 Failed 6 | . 6 . Catastrophic 1 | . 1 . Database Lockouts . | . . . Manual . | . . . Terminals 9 | . 9 . Fabricators . | . . . Repair Stations . | . . . Recycling Units . | . . . Scanalyzers . | . . . Garrison Access . | . . . Terminal Hacks 4 | . 3 1 Open Door 1 | . . 1 Emergency Access Points 1 | . 1 . Locate Traps 1 | . 1 . Registered Components 1 | . 1 . Fabricator Hacks . | . . . Repair Station Hacks . | . . . Recycling Unit Hacks . | . . . Scanalyzer . | . . . Garrison Access Hacks . | . . . Unauthorized Hacks . | . . . Terminals . | . . . Fabricators . | . . . Repair Stations . | . . . Recycling Units . | . . . Scanalyzers . | . . . Garrison Access . | . . . Data Cores Recovered 1 | . 1 . Used 1 | . 1 . Hacking Detections 3 | . 3 . Full Trace Events 1 | . 1 . Feedback Events . | . . . Feedback Blocked . | . . . Robot Schematics Acquired . | . . . Robots Built . | . . . Authchips . | . . . Time . | . . . Total Robot Build Rating . | . . . Part Schematics Acquired . | . . . Parts Built . | . . . Authchips . | . . . Time . | . . . Total Part Build Rating . | . . . Parts Repaired . | . . . Time . | . . . Parts Recycled . | . . . Recycled Matter . | . . . Retrieved Matter . | . . . Retrieved Components . | . . . Parts Scanalyzed . | . . . Part Schematics Acquired . | . . . Parts Damaged . | . . . Bothacking | -11 -10 -10 ------------ Run | Yrd Mat Min Used RIF Installer . | . . . Robots Hacked . | . . . Non-combat . | . . . Combat . | . . . Robot Hacks Applied . | . . . Relay Couplers Released . | . . . Fabnet Peak Effective % . | . . . Robots Rewired . | . . . Allies Hacked . | . . . Hacks Repelled . | . . . Allies | -11 -10 -10 -------- Run | Yrd Mat Min Total Allies . | . . . Largest Group . | . . . Highest-Rated Group . | . . . Highest-Rated Ally . | . . . Total Orders . | . . . Ally Attacks . | . . . Total Damage . | . . . Kills . | . . . Allies Corrupted . | . . . Allies Melted . | . . . Intel | -11 -10 -10 ------- Run | Yrd Mat Min Robot Analysis Total . | . . . Derelict Logs Recovered 1 | . . 1 Drone Launches . | . . . Drone Recoveries . | . . . Exploration | -11 -10 -10 ------------- Run | Yrd Mat Min Turns Passed 1207 | 79 460 668 Spaces Moved 671 | 50 249 372 Core 20 | 20 . . Treads . | . . . Legs 651 | 30 249 372 Wheels . | . . . Hover . | . . . Flight . | . . . Fastest Speed 50 | 50 120 120 Average Speed 141 | 94 120 162 Slowest Speed 195 | 120 120 195 Overloaded Moves . | . . . Propulsion Burnouts . | . . . Robots Hopped . | . . . Cave-ins Triggered . | . . . Exploration Rate (%) 30 | 4 43 45 Regions Visited 2 Branch Regions 1 Pre-discovered Areas 1 | . . 1 Known Exits Taken . | . . . Unknown Exits Taken 2 | 1 1 . Scrap Searched 1 | . . 1 Spaces Dug . | . . . Terrain Destroyed 40 | . 15 25 Melee . | . . . Projectile . | . . . AOE 40 | . 15 25 Terrain Rammed . | . . . Walls Destroyed . | . . . Machines Disabled . | . . . Actions | -11 -10 -10 --------- Run | Yrd Mat Min Total 819 | 70 331 418 Wait 18 | . 9 9 Move 669 | 49 248 372 Hop . | . . . Pick Up 24 | 8 9 7 Fast Attach 4 | 2 . 2 Attach 8 | 5 2 1 Detach 1 | . . 1 Swap 6 | . 3 3 Drop 9 | . 2 7 Fire 79 | 6 57 16 Melee . | . . . Ram . | . . . Kick 1 | . 1 . Crush . | . . . Escape Stasis . | . . . Rewire . | . . . Trap . | . . . Miscellaneous . | . . . Route ------- -11/Scrapyard -10/Materials (discovered 2 exits: [*Mat] / *Min) -10/Mines (discovered 3 exits: [*Mat x2] / [Sub]) History --------- Turn | Location | Event 4 | -11/Scrapyard | Discovered new exit (range 15) 80 | -11/Scrapyard | Entered Materials 280 | -10/Materials | Discovered new exit (range 11) 312 | -10/Materials | Build established: Mutant 519 | -10/Materials | Discovered new exit (range 8) 540 | -10/Materials | Entered Mines 541 | -10/Mines | Discovered new exit (range 14) 550 | -10/Mines | Met a Derelict shopkeep closing up shop 691 | -10/Mines | Discovered new exit (range 7) 732 | -10/Mines | Learned Materials emergency access door positions 772 | -10/Mines | Assembled infested the area 777 | -10/Mines | Assisted by a Guerilla fighting off Assembled 1000 | -10/Mines | Discovered new exit (range 14) 1047 | -10/Mines | Core integrity fell below 50% 1183 | -10/Mines | Core integrity fell below 20% 1206 | -10/Mines | Learned location of Storage (-7) 1208 | -10/Mines | Destroyed by D-53 Grenadier with Mini Grenade Launcher Last Messages --------------- K-01 Serf collects debris. U-05 Engineer lays Concrete. The unstable cave ceiling collapses. K-01 Serf collects debris. The unstable cave ceiling collapses. Nuclear Core destroyed. Beam Cannon destroyed. The unstable cave ceiling collapses. A derelict emerges from the shadows: "Are any of them following you? I'm here trying to lose some heat after our second raid on Storage failed. Whatever you do stay away from that place, they've tightened security following our previous successful raids." World map updated: -7/Storage. Grenade Launcher destroyed. SB-UBR(g): "We scattered so the Unaware couldn't effectively use their advantage in numbers, and I suggest you do the same." SB-UBR(g) slips back into the shadows. Map ----- +----------------------------------------------------+ | ????????????????????????????? ? ##???? | | ???????????????????????????? ##???? | | ???????????????????????????? ##???? | | ???????????????????????????? ##???? | | ???????????????????????????? ##???? | | ??????????????????????????## ##???? | | ?????????### ?????########## ##???? | | ?????????### ????##########= ###??? | | ??????##### ? ##### ## %! ###??? | | ??????##### #### != ##??? | | ?????? ### ## # ##??? | | ??????## ##### ###??? | | ????? ## #### # ###???? | | ##??? # # # # ###????? | | ??? # # ###????? | | #???## # ####???? | | #??### ## ###???? | | ###### =# ##### ##???? | | #### #### ####### ##???? | | ## = [%* ######## #####???? | | %% =%!! ########dd#####???? | | ! ####### #### ##??????? | | * ####### ### ##??????? | | # =% #???## ### ##??????? | | #### ##??## ## ##??????? | | ##### %% ####??## ## @ ###??????? | | ??## % ####??## !# ###??????? | | ?? # ####????##%*# ###??????? | | ?? ## ##?????##= ## ##??????? | | ??## ##??????## ## ??????? | | ??? #######?## ## # ?????? | | ??# %*#######?##* #### ????? | | ??## ##?##%!##### ???? | | ??## % #### ##### ####### ##? | | #### ######%##### ############ ##? | | ####%###### ### =% ##### ###? | | # ### ### """ ##?#######? | | ### ### """ ##??#####?? | | ###*### """ #####?????? | | ### %< #####?????? | | ## ######## * """ # ##?????? | | #### ######## """ ##?????? | | ##### ##???## """ * ##?????? | | ###?## ##???## # ## ?????? | | #???######???## ####